bitfinex/quotes_BTCUSD_20240101
["timestamp","ask_amount","ask_price","bid_price","bid_amount"]
[1704103666431,0.0294,42722.0,42721.0,0.86646329]
[1704103671449,0.0294,42722.0,42721.0,0.76646329]
[1704103671672,0.0294,42722.0,42721.0,0.56646329]
[1704103671872,0.0294,42722.0,42721.0,0.32324618]
[1704103672502,0.0274,42722.0,42721.0,0.30524618]
[1704103672702,0.0254,42722.0,42721.0,0.28724618]
[1704103672909,0.0264,42722.0,42721.0,0.29824618]
[1704103673173,0.0264,42722.0,42721.0,0.29724618]
[1704103673587,0.0264,42722.0,42721.0,0.29624618]
[1704103674018,0.0274,42722.0,42721.0,0.30524618]
[1704103680607,0.0079707,42724.0,42721.0,0.30524618]
[1704103680805,0.0079707,42724.0,42723.0,0.27724618]
[1704103681006,0.0079707,42724.0,42723.0,0.28724618]
[1704103681610,0.4760907,42724.0,42723.0,0.28724618]
[1704103682266,0.4760907,42724.0,42723.0,0.28824618]
[1704103689096,0.4760907,42724.0,42723.0,0.18824618]
[1704103689340,0.4760907,42724.0,42723.0,0.05795]
[1704103690394,0.4760907,42724.0,42723.0,0.28824618]
[1704103700680,0.0079707,42724.0,42723.0,0.28824618]
[1704103700894,0.4760907,42724.0,42723.0,0.28824618]
[1704103718871,0.0079707,42724.0,42723.0,0.28824618]
[1704103719100,0.4760907,42724.0,42723.0,0.28824618]
[1704103720155,0.0079707,42724.0,42723.0,0.28824618]
[1704103722097,0.0079707,42724.0,42723.0,0.29024618]
[1704103722523,0.0079707,42724.0,42723.0,0.28924618]
[1704103722740,0.0079707,42724.0,42723.0,0.29024618]
[1704103722956,0.0079707,42724.0,42723.0,0.28924618]
[1704103723386,0.0079707,42724.0,42723.0,0.29124618]
[1704103725121,0.0079707,42724.0,42723.0,0.18924618]
[1704103725455,0.0079707,42724.0,42723.0,0.28924618]
[1704103725863,0.0079707,42724.0,42723.0,0.29124618]
[1704103726043,0.0079707,42724.0,42723.0,0.28924618]
[1704103726449,0.0079707,42724.0,42723.0,0.29124618]
[1704103726881,0.0079707,42724.0,42723.0,0.28924618]
[1704103727330,0.0079707,42724.0,42723.0,0.29124618]
[1704103729624,0.4760907,42724.0,42723.0,0.29124618]
[1704103737607,0.0079707,42724.0,42723.0,0.29124618]
[1704103737810,0.4760907,42724.0,42723.0,0.06095]
[1704103740339,0.4760907,42724.0,42723.0,0.004]
[1704103740340,1.3908134,42724.0,42723.0,0.004]
[1704103740566,1.81165472,42724.0,42723.0,0.004]
[1704103740785,1.69956945,42724.0,42723.0,0.004]
[1704103741072,1.79178945,42724.0,42723.0,0.004]
[1704103741260,0.06970382,42722.0,42714.0,0.04695]
[1704103741481,0.05619031,42719.0,42714.0,0.27724618]
[1704103741701,0.468192,42718.0,42714.0,0.04695]
[1704103741925,0.468213,42716.0,42714.0,0.29595]
[1704103742137,0.468213,42716.0,42715.0,0.27724618]
[1704103743616,0.470213,42716.0,42715.0,0.27724618]
[1704103744221,0.005,42716.0,42715.0,0.27724618]
[1704103744445,0.473213,42716.0,42715.0,0.28724618]
[1704103745882,0.473213,42716.0,42715.0,0.27724618]
[1704103746336,0.473213,42716.0,42715.0,0.28724618]
[1704103746736,0.470213,42716.0,42715.0,0.28724618]
[1704103746916,0.471213,42716.0,42715.0,0.28724618]
[1704103747458,0.473213,42716.0,42715.0,0.28724618]
[1704103749943,0.473213,42716.0,42715.0,0.04695]
[1704103750193,1.00643011,42716.0,42715.0,0.04695]
[1704103750419,0.06970382,42714.0,42707.0,0.13029618]
[1704103750643,0.468296,42708.0,42707.0,0.01]
[1704103750867,0.468288,42709.0,42708.0,0.13029618]
[1704103751083,0.468288,42709.0,42708.0,0.14029618]
[1704103751084,0.768288,42709.0,42708.0,0.14029618]
[1704103753275,0.773288,42709.0,42708.0,0.14129618]
[1704103753500,0.778288,42709.0,42708.0,0.14129618]
[1704103753958,0.773288,42709.0,42708.0,0.38459618]
[1704103754857,0.778288,42709.0,42708.0,0.2453]
[1704103755072,1.08374511,42709.0,42708.0,0.001]
[1704103757876,1.06580511,42709.0,42708.0,0.001]
[1704103759803,0.59751711,42709.0,42708.0,0.001]
[1704103760048,1.06580511,42709.0,42708.0,0.001]
[1704103760671,1.09389473,42709.0,42708.0,0.001]
[1704103764125,1.68536655,42709.0,42708.0,0.001]
[1704103764328,1.70076655,42709.0,42708.0,0.001]
[1704103765810,1.80462655,42709.0,42708.0,0.001]
[1704103766105,0.468373,42701.0,42700.0,0.04695]
[1704103766303,0.70159011,42701.0,42700.0,0.04695]
[1704103766607,0.75823011,42701.0,42700.0,0.04695]
[1704103767255,0.76223011,42701.0,42700.0,0.04695]
[1704103767440,0.77048622,42701.0,42700.0,0.04695]
[1704103767650,0.85744622,42701.0,42700.0,0.04695]
[1704103768309,0.86225393,42701.0,42700.0,0.04695]
[1704103768498,0.85825393,42701.0,42700.0,0.04695]
[1704103768913,0.86225393,42701.0,42700.0,0.04695]
[1704103771209,1.53755364,42701.0,42700.0,0.04695]
[1704103771797,1.66902874,42701.0,42700.0,0.04695]
[1704103772030,1.53755364,42701.0,42700.0,0.04695]
[1704103772241,1.47659364,42701.0,42700.0,0.04695]
[1704103773661,1.53017364,42701.0,42700.0,0.04695]
[1704103775692,1.06180064,42701.0,42700.0,0.04695]
[1704103775908,1.53017364,42701.0,42700.0,0.04695]
[1704103776251,1.55792713,42701.0,42700.0,0.04695]
[1704103777093,1.62735034,42701.0,42700.0,0.04695]
[1704103777934,1.55792713,42701.0,42700.0,0.04695]
[1704103778825,1.48822331,42701.0,42700.0,0.05695]
[1704103779028,1.43464331,42701.0,42700.0,0.05695]
[1704103783004,1.41164331,42701.0,42700.0,0.05695]
[1704103793727,1.41164331,42701.0,42700.0,0.28724618]
[1704103793728,1.1784262,42701.0,42700.0,0.28724618]
[1704103793906,0.7100532,42701.0,42700.0,0.28724618]
[1704103796699,0.7070532,42701.0,42700.0,0.28724618]
[1704103797147,0.7030532,42701.0,42700.0,0.28724618]
[1704103797342,0.7070532,42701.0,42700.0,0.28724618]
[1704103797564,0.7070532,42701.0,42700.0,0.09205389]
[1704103797796,1.1714262,42701.0,42700.0,0.05695]
[1704103798191,1.1714262,42701.0,42700.0,0.05895]
[1704103799281,1.40464331,42701.0,42700.0,0.012]
[1704103800450,1.44135525,42701.0,42700.0,0.012]
[1704103802804,1.49391525,42701.0,42700.0,0.012]
[1704103803011,1.51691525,42701.0,42700.0,0.002]
[1704103803240,1.51691525,42701.0,42700.0,0.012]
[1704103803649,1.51691525,42701.0,42700.0,0.002]
[1704103803853,1.51691525,42701.0,42700.0,0.012]
[1704103804704,0.78905554,42701.0,42700.0,0.012]
[1704103804904,1.44759856,42701.0,42700.0,0.012]
[1704103805509,1.54088541,42701.0,42700.0,0.012]
[1704103806134,1.77707815,42701.0,42700.0,0.002]
[1704103806344,1.83407815,42701.0,42700.0,0.002]
[1704103806539,2.13407815,42701.0,42700.0,0.002]
[1704103806762,2.60245115,42701.0,42700.0,0.002]
[1704103806965,2.63908711,42701.0,42700.0,0.002]
[1704103807209,2.63908711,42701.0,42700.0,0.001]
[1704103807439,2.63908711,42701.0,42700.0,0.002]
[1704103807635,2.64708711,42701.0,42700.0,0.002]
[1704103808045,0.06970382,42699.0,42696.0,0.2346]
[1704103808261,0.468416,42697.0,42696.0,0.2346]
[1704103808490,0.468416,42697.0,42694.0,0.04684]
[1704103808491,1.36017613,42697.0,42694.0,0.04684]
[1704103808697,0.89176013,42696.0,42695.0,0.2346]
[1704103808908,1.36018713,42696.0,42694.0,0.04684]
[1704103809142,1.12698102,42695.0,42694.0,0.04684]
[1704103809352,1.36019813,42695.0,42694.0,0.04684]
[1704103809774,1.36019813,42695.0,42694.0,0.04784]
[1704103810182,1.36019813,42695.0,42694.0,0.04684]
[1704103810777,1.36419813,42695.0,42694.0,0.04684]
[1704103811053,0.66254302,42695.0,42694.0,0.28713618]
[1704103812577,0.66554302,42695.0,42694.0,0.28713618]
[1704103813012,0.65854302,42695.0,42694.0,0.28713618]
[1704103813228,0.66454302,42695.0,42694.0,0.28713618]
[1704103813440,0.66254302,42695.0,42694.0,0.28713618]
[1704103813657,0.65854302,42695.0,42694.0,0.28713618]
[1704103813864,0.66054302,42695.0,42694.0,0.28713618]
[1704103814079,0.66254302,42695.0,42694.0,0.28713618]
[1704103814499,0.66054302,42695.0,42694.0,0.28713618]
[1704103815148,0.66154302,42695.0,42694.0,0.28713618]
[1704103815362,0.65954302,42695.0,42694.0,0.34296213]
[1704103816313,0.66054302,42695.0,42694.0,0.34896213]
[1704103816977,0.65954302,42695.0,42694.0,0.29313618]
[1704103817448,0.66054302,42695.0,42694.0,0.29813618]
[1704103818515,0.65754302,42695.0,42694.0,0.29813618]
[1704103825441,0.65754302,42695.0,42694.0,0.35396213]
[1704103826727,0.65754302,42695.0,42694.0,0.29813618]
[1704103827665,0.002,42695.0,42694.0,0.29813618]
[1704103835778,0.002,42695.0,42694.0,0.35431246]
[1704103836227,0.002,42695.0,42694.0,0.29813618]
[1704103836420,0.002,42695.0,42694.0,0.35431246]
[1704103836871,0.002,42695.0,42694.0,0.35431251]
[1704103838871,0.002,42695.0,42694.0,0.29813618]
[1704103840482,0.002,42695.0,42694.0,0.35431251]
[1704103842387,0.002,42695.0,42694.0,0.35430434]
[1704103843223,0.002,42695.0,42694.0,0.29813618]
[1704103843851,0.002,42695.0,42694.0,0.35430434]
[1704103844281,0.002,42695.0,42694.0,0.29813618]
[1704103845695,0.002,42695.0,42694.0,0.35430434]
[1704103848807,0.002,42695.0,42694.0,0.65932816]
[1704103849014,0.002,42695.0,42694.0,0.65930195]
[1704103849294,0.002,42695.0,42694.0,0.68741939]
[1704103851996,0.002,42695.0,42694.0,0.57505446]
[1704103852621,0.002,42695.0,42694.0,0.68741939]
[1704103853653,0.002,42695.0,42694.0,0.57505446]
[1704103853868,0.002,42695.0,42694.0,0.65928486]
[1704103854262,0.002,42695.0,42694.0,0.38236658]
[1704103854471,0.002,42695.0,42694.0,0.65928587]
[1704103854878,0.002,42695.0,42694.0,0.38236658]
[1704103855338,0.002,42695.0,42694.0,0.65928639]
[1704103858090,0.002,42695.0,42694.0,0.5750552]
[1704103858302,0.002,42695.0,42694.0,0.65929599]
[1704103858481,0.002,42695.0,42694.0,0.5750552]
[1704103858843,0.002,42695.0,42694.0,0.6873888]
[1704103860149,0.002,42695.0,42694.0,0.65931802]
[1704103860348,0.002,42695.0,42694.0,0.5750552]
[1704103861018,0.002,42695.0,42694.0,0.65932375]
[1704103861450,0.002,42695.0,42694.0,0.5750552]
[1704103861653,0.002,42695.0,42694.0,0.6873888]
[1704103864199,0.002,42695.0,42694.0,0.65932483]
[1704103868135,0.002,42695.0,42694.0,0.38240581]
[1704103871139,0.002,42695.0,42694.0,0.65933433]
[1704103871782,0.002,42695.0,42694.0,0.64933433]
[1704103871994,0.002,42695.0,42694.0,0.65933543]
[1704103872387,0.002,42695.0,42694.0,0.64933543]
[1704103872578,0.002,42695.0,42694.0,0.65933543]
[1704103872995,0.002,42695.0,42694.0,0.38240581]
[1704103874048,0.002,42695.0,42694.0,0.65933605]
[1704103874268,0.002,42695.0,42694.0,0.38240581]
[1704103874860,0.002,42695.0,42694.0,0.35433559]
[1704103875410,0.002,42695.0,42694.0,0.29813618]
[1704103875850,0.002,42695.0,42694.0,0.35433063]
[1704103876493,0.002,42695.0,42694.0,0.38240581]
[1704103877158,0.002,42695.0,42694.0,0.575059]
[1704103877372,0.002,42695.0,42694.0,0.6873926]
[1704103880351,0.002,42695.0,42694.0,0.575059]
[1704103881455,0.002,42695.0,42694.0,0.68740779]
[1704103884075,0.002,42695.0,42694.0,1.24869041]
[1704103884314,0.002,42695.0,42694.0,1.10827611]
[1704103884538,0.002,42695.0,42694.0,1.24868689]
[1704103886299,0.002,42695.0,42694.0,1.31988689]
[1704103886515,0.002,42695.0,42694.0,1.17947611]
[1704103888075,0.002,42695.0,42694.0,1.11827611]
[1704103889357,0.002,42695.0,42694.0,1.17035611]
[1704103889569,0.002,42695.0,42694.0,1.11827611]
[1704103890472,0.002,42695.0,42694.0,1.10827611]
[1704103890681,0.002,42695.0,42694.0,1.11827611]
[1704103890894,0.002,42695.0,42694.0,1.17971611]
[1704103891516,0.002,42695.0,42694.0,1.11827611]
[1704103892392,0.002,42695.0,42694.0,1.10827611]
[1704103892935,0.002,42695.0,42694.0,1.15579611]
[1704103904730,0.002,42695.0,42694.0,1.16579611]
[1704103905026,0.002,42695.0,42694.0,1.15579611]
[1704103905265,0.002,42695.0,42694.0,1.10827611]
[1704103905476,0.002,42695.0,42694.0,1.15837611]
[1704103906322,0.002,42695.0,42694.0,1.29863071]
[1704103906492,0.002,42695.0,42694.0,1.15837611]
[1704103907658,0.002,42695.0,42694.0,1.10827611]
[1704103908180,0.002,42695.0,42694.0,1.15327611]
[1704103908392,0.002,42695.0,42694.0,1.10827611]
[1704103908991,0.002,42695.0,42694.0,1.15345611]
[1704103909201,0.002,42695.0,42694.0,1.10827611]
[1704103909631,0.002,42695.0,42694.0,1.15327611]
[1704103910890,0.61383801,42695.0,42694.0,0.575059]
[1704103911096,0.002,42695.0,42694.0,0.68727464]
[1704103911342,0.61209172,42695.0,42694.0,0.68727464]
[1704103912882,0.61209172,42695.0,42694.0,0.65922149]
[1704103913090,0.61209172,42695.0,42694.0,0.575059]
[1704103913533,0.61209172,42695.0,42694.0,0.68727464]
[1704103917039,0.61209172,42695.0,42694.0,0.575059]
[1704103917603,0.61209172,42695.0,42694.0,0.57505446]
[1704103918447,0.61209172,42695.0,42694.0,0.68728275]
[1704103925961,0.61209172,42695.0,42694.0,0.71533983]
[1704103928330,0.002,42695.0,42694.0,1.10827157]
[1704103928554,0.468345,42704.0,42703.0,0.23029618]
[1704103928763,0.1134,42705.0,42704.0,0.01]
[1704103928981,0.1134,42705.0,42704.0,0.05684]
[1704103928982,0.88798541,42705.0,42704.0,0.05684]
[1704103929858,1.35631441,42705.0,42704.0,0.05684]
[1704103930312,1.35631441,42705.0,42704.0,0.28713618]
[1704103931176,1.35631441,42705.0,42704.0,0.28813618]
[1704103935368,2.04754548,42705.0,42704.0,0.28813618]
[1704103935576,2.04754548,42705.0,42704.0,0.27813618]
[1704103935788,2.04754548,42705.0,42704.0,0.28813618]
[1704103947365,1.57921648,42705.0,42704.0,0.28813618]
[1704103947597,2.04754548,42705.0,42704.0,0.28813618]
[1704103947833,1.3442323,42705.0,42704.0,0.28813618]
[1704103948222,2.04203934,42705.0,42704.0,0.28813618]
[1704103948433,1.3442323,42705.0,42704.0,0.28813618]
[1704103948843,2.04263729,42705.0,42704.0,0.28813618]
[1704103980357,1.74263729,42705.0,42704.0,0.28813618]
[1704103980589,1.0442323,42705.0,42704.0,0.28813618]
[1704103981435,0.5759033,42705.0,42704.0,0.28813618]
[1704103981644,1.0442323,42705.0,42704.0,0.28813618]
[1704103982547,1.0442323,42705.0,42704.0,0.44423351]
[1704103982548,0.5759033,42705.0,42704.0,0.44423351]
[1704103982990,0.5759033,42705.0,42704.0,0.74914692]
[1704103983222,0.5759033,42705.0,42704.0,0.74911285]
[1704103983434,0.5759033,42705.0,42704.0,0.74908408]
[1704103984088,0.5759033,42705.0,42704.0,0.44419378]
[1704103984948,0.5759033,42705.0,42704.0,0.74907539]
[1704103985172,0.468279,42710.0,42709.0,0.24029618]
[1704103985385,1.03722408,42710.0,42709.0,0.24029618]
[1704103986526,1.04422408,42710.0,42709.0,0.24129618]
[1704103987786,1.05122408,42710.0,42709.0,0.24229618]
[1704104006851,0.99843217,42710.0,42709.0,0.24229618]
[1704104015652,0.53015317,42710.0,42709.0,0.24229618]
[1704104015874,0.53015317,42710.0,42709.0,0.28913618]
[1704104016306,0.014,42710.0,42709.0,0.28913618]
[1704104016524,0.007,42710.0,42709.0,0.53433618]
[1704104016967,0.013,42710.0,42709.0,0.53533618]
[1704104017202,0.006,42710.0,42709.0,0.53433618]
[1704104017411,0.0282422,42714.0,42713.0,0.05684]
[1704104017617,0.49309056,42714.0,42713.0,0.05684]
[1704104018605,0.49509056,42714.0,42713.0,0.05684]
[1704104018806,0.49309056,42714.0,42713.0,0.05684]
[1704104019249,0.49409056,42714.0,42713.0,0.05684]
[1704104020187,0.49509056,42714.0,42713.0,0.05684]
[1704104020593,0.49409056,42714.0,42713.0,0.05684]
[1704104020951,0.49309056,42714.0,42713.0,0.05984]
[1704104021157,0.49309056,42714.0,42713.0,0.06384]
[1704104022559,0.49309056,42714.0,42713.0,0.29413618]
[1704104023192,0.02858242,42716.0,42715.0,0.27713618]
[1704104023395,0.02858242,42716.0,42715.0,0.28713618]
[1704104023614,0.468169,42720.0,42719.0,0.23029618]
[1704104023814,0.9142482,42720.0,42719.0,0.24029618]
[1704104024040,0.94292061,42720.0,42719.0,0.24029618]
[1704104024781,0.94792061,42720.0,42719.0,0.24029618]
[1704104025918,0.94792061,42720.0,42719.0,0.28713618]
[1704104026352,0.95392061,42720.0,42719.0,0.28813618]
[1704104026777,0.94792061,42720.0,42719.0,0.28713618]
[1704104026939,0.95092061,42720.0,42719.0,0.28713618]
[1704104027145,0.94592061,42720.0,42719.0,0.28713618]
[1704104027471,0.94792061,42720.0,42719.0,0.28713618]
[1704104027642,0.94592061,42720.0,42719.0,0.28713618]
[1704104028463,0.94392061,42720.0,42719.0,0.28713618]
[1704104029026,0.94492061,42720.0,42719.0,0.28713618]
[1704104037102,0.94392061,42720.0,42719.0,0.28713618]
[1704104037306,0.94292061,42720.0,42719.0,0.28713618]
[1704104037514,0.94392061,42720.0,42719.0,0.28713618]
[1704104038084,0.49784141,42720.0,42719.0,0.28713618]
[1704104038299,0.91980837,42720.0,42719.0,0.28713618]
[1704104038499,0.92080837,42720.0,42719.0,0.28713618]
[1704104039178,0.91980837,42720.0,42719.0,0.09194389]
[1704104039414,0.91880837,42720.0,42719.0,0.09194389]
[1704104040286,1.53454051,42720.0,42719.0,0.09194389]
[1704104040510,0.91880837,42720.0,42719.0,0.09194389]
[1704104041153,0.91880837,42720.0,42719.0,0.09294389]
[1704104050569,0.91880837,42720.0,42719.0,0.54363618]
[1704104056747,0.45063937,42720.0,42719.0,0.54363618]
[1704104056962,0.91880837,42720.0,42719.0,0.54363618]
[1704104064499,0.91880837,42720.0,42719.0,0.53650162]
[1704104072556,1.15202548,42720.0,42719.0,0.30620544]
[1704104072808,1.15202548,42720.0,42719.0,0.00386544]
[1704104072809,1.81246531,42720.0,42719.0,0.00386544]
[1704104073007,1.8490828,42720.0,42719.0,0.00386544]
[1704104073418,1.81246531,42720.0,42719.0,0.00386544]
[1704104073624,1.75639614,42720.0,42719.0,0.00286544]
[1704104073975,1.77039614,42720.0,42719.0,0.00486544]
[1704104074183,1.77039614,42720.0,42719.0,0.00386544]
[1704104074184,1.76339614,42720.0,42719.0,0.00386544]
[1704104074404,1.75639614,42720.0,42719.0,0.00286544]
[1704104074610,1.76339614,42720.0,42719.0,0.00386544]
[1704104074816,1.77039614,42720.0,42719.0,0.00486544]
[1704104083630,1.77039614,42720.0,42719.0,0.00511544]
[1704104084465,0.74405852,42720.0,42719.0,0.00511544]
[1704104084866,1.65865488,42720.0,42719.0,0.00511544]
[1704104090212,1.78442787,42720.0,42719.0,0.002]
[1704104090388,2.62916818,42720.0,42719.0,0.002]
[1704104090591,2.74130653,42720.0,42719.0,0.002]
[1704104090796,2.27313753,42720.0,42719.0,0.002]
[1704104091002,2.27334628,42720.0,42719.0,0.002]
[1704104091367,2.27334628,42720.0,42719.0,0.00168894]
[1704104092593,2.74151528,42720.0,42719.0,0.00168894]
[1704104093458,2.62916818,42720.0,42719.0,0.00168894]
[1704104094162,2.74151528,42720.0,42719.0,0.00168894]
[1704104094618,2.71338051,42720.0,42719.0,0.00168894]
[1704104094828,2.24521151,42720.0,42719.0,0.00168894]
[1704104095241,2.71338051,42720.0,42719.0,0.00168894]
[1704104096751,0.06970382,42714.0,42710.0,0.2511]
[1704104096976,0.468263,42711.0,42710.0,0.2511]
[1704104097197,1.30777591,42711.0,42710.0,0.2511]
[1704104097399,1.91607647,42711.0,42710.0,0.2511]
[1704104097844,1.91607647,42711.0,42710.0,0.2521]
[1704104098266,1.44781347,42711.0,42710.0,0.2521]
[1704104098392,1.44781347,42711.0,42710.0,0.2511]
[1704104098611,1.91607647,42711.0,42710.0,0.2511]
[1704104099072,1.92107647,42711.0,42710.0,0.2511]
[1704104099268,1.91607647,42711.0,42710.0,0.2511]
[1704104099720,1.92407647,42711.0,42710.0,0.2521]
[1704104100418,1.91907647,42711.0,42710.0,0.2511]
[1704104100653,1.45481347,42711.0,42710.0,0.2511]
[1704104100900,1.92307647,42711.0,42710.0,0.2511]
[1704104101084,1.96560097,42711.0,42710.0,0.2511]
[1704104101713,1.92307647,42711.0,42710.0,0.2511]
[1704104102198,1.92307647,42711.0,42710.0,0.25396544]
[1704104102962,1.95245706,42711.0,42710.0,0.25396544]
[1704104103184,1.0815588,42711.0,42710.0,0.28906933]
[1704104103391,0.6132958,42711.0,42710.0,0.53110162]
[1704104103613,0.3132958,42711.0,42710.0,0.53110162]
[1704104104044,0.40767658,42712.0,42711.0,0.27713618]
[1704104104266,0.40768469,42712.0,42711.0,0.28000162]
[1704104104714,0.04782,42721.0,42719.0,0.03510389]
[1704104104715,0.02867241,42720.0,42719.0,0.03510389]
[1704104104930,0.43251753,42720.0,42719.0,0.03796933]
[1704104105142,0.43251753,42720.0,42719.0,0.29786933]
[1704104105809,0.43251753,42720.0,42719.0,0.49306162]
[1704104106294,0.43251753,42720.0,42719.0,0.53990162]
[1704104106926,0.44151753,42720.0,42719.0,0.54090162]
[1704104107551,0.44151753,42720.0,42719.0,0.54190162]
[1704104107986,0.43251753,42720.0,42719.0,0.54090162]
[1704104109764,0.43251753,42720.0,42719.0,0.53990162]
[1704104109980,0.43251753,42720.0,42719.0,0.54190162]
[1704104110198,0.12253079,42723.0,42720.0,0.00286544]
[1704104110413,0.12253079,42723.0,42719.0,0.54103618]
[1704104110414,0.12253079,42723.0,42722.0,0.03796933]
[1704104110627,0.73472901,42723.0,42722.0,0.03796933]
[1704104110844,0.73472901,42723.0,42722.0,0.52120162]
[1704104111545,0.73772901,42723.0,42722.0,0.52120162]
[1704104111767,0.43772901,42723.0,42722.0,0.52120162]
[1704104112667,0.43472901,42723.0,42722.0,0.52120162]
[1704104112884,0.43972901,42723.0,42722.0,0.52120162]
[1704104113721,0.43672901,42723.0,42722.0,0.32600933]
[1704104113930,0.95874001,42723.0,42722.0,0.32600933]
[1704104114171,0.95974001,42723.0,42722.0,0.27916933]
[1704104114377,0.95974001,42723.0,42722.0,0.28016933]
[1704104115054,0.90586001,42723.0,42722.0,0.28016933]
[1704104116135,0.90286001,42723.0,42722.0,0.28016933]
[1704104117047,0.95536001,42723.0,42722.0,0.28016933]
[1704104118240,0.90286001,42723.0,42722.0,0.28016933]
[1704104118894,0.95644001,42723.0,42722.0,0.28016933]
[1704104119051,0.95644001,42723.0,42722.0,0.24506544]
[1704104119458,0.95644001,42723.0,42722.0,0.28016933]
[1704104119866,0.95644001,42723.0,42722.0,0.24506544]
[1704104120331,0.90286001,42723.0,42722.0,0.28016933]
[1704104124166,0.90286001,42723.0,42722.0,0.32700933]
[1704104125631,1.13607712,42723.0,42722.0,0.001]
[1704104125847,1.232064,42723.0,42722.0,0.001]
[1704104126273,1.232064,42723.0,42715.0,0.19519229]
[1704104126274,0.06970382,42719.0,42715.0,0.04684]
[1704104126490,1.85048255,42723.0,42715.0,0.04684]
[1704104126491,0.53791182,42716.0,42715.0,0.04684]
[1704104126702,0.53791182,42716.0,42709.0,0.03796933]
[1704104126703,0.06970382,42714.0,42709.0,0.03796933]
[1704104126915,0.06970382,42714.0,42699.0,1.125487]
[1704104126916,1.17709115,42713.0,42704.0,0.03510389]
[1704104127126,1.47709115,42713.0,42704.0,0.03510389]
[1704104127342,0.06970382,42712.0,42705.0,0.2479]
[1704104127550,0.468275,42710.0,42707.0,0.00286544]
[1704104127731,0.468296,42708.0,42705.0,0.2479]
[1704104127934,0.40592922,42707.0,42705.0,0.2479]
[1704104128141,0.40592922,42706.0,42705.0,0.2479]
[1704104128349,0.40592922,42706.0,42705.0,0.47819618]
[1704104128789,0.468219,42716.0,42713.0,0.00286544]
[1704104129008,0.04974,42722.0,42718.0,0.00286544]
[1704104129253,0.09850361,42723.0,42719.0,0.00286544]
[1704104129254,0.468167,42720.0,42719.0,0.00286544]
[1704104129472,0.468167,42720.0,42716.0,0.28000162]
[1704104129473,0.70138411,42720.0,42716.0,0.28000162]
[1704104129691,0.468177,42719.0,42716.0,0.04970544]
[1704104129914,0.468195,42718.0,42716.0,0.04970544]
[1704104130132,0.468195,42718.0,42716.0,0.00286544]
[1704104130340,0.515595,42718.0,42716.0,0.00286544]
[1704104130558,0.515595,42718.0,42717.0,0.2442]
[1704104131656,0.0474,42718.0,42717.0,0.2442]
[1704104131875,0.515594,42718.0,42717.0,0.2442]
[1704104132077,0.523594,42718.0,42717.0,0.2442]
[1704104132547,0.515594,42718.0,42717.0,0.2442]
[1704104132724,0.515594,42718.0,42717.0,0.2452]
[1704104133606,0.515594,42718.0,42717.0,0.29204]
[1704104133822,0.468194,42718.0,42717.0,0.29490544]
[1704104134857,0.468194,42718.0,42717.0,0.29204]
[1704104135060,0.468194,42718.0,42717.0,0.001]
[1704104135061,1.17129291,42718.0,42717.0,0.001]
[1704104135266,1.14969291,42718.0,42717.0,0.001]
[1704104136502,0.768194,42718.0,42717.0,0.00386544]
[1704104137144,0.768194,42718.0,42717.0,0.001]
[1704104137145,0.823154,42718.0,42717.0,0.001]
[1704104137573,0.823154,42718.0,42717.0,0.00386544]
[1704104138408,0.823154,42718.0,42717.0,0.001]
[1704104139111,0.823154,42718.0,42717.0,0.00386544]
[1704104139326,0.823154,42718.0,42717.0,0.001]
[1704104141082,0.823154,42718.0,42717.0,0.00386544]
[1704104141529,0.768194,42718.0,42717.0,0.05070544]
[1704104142105,0.3,42718.0,42717.0,0.28194364]
[1704104142304,0.3,42720.0,42719.0,0.2780782]
[1704104142917,0.02879979,42723.0,42722.0,0.23410364]
[1704104143325,0.468126,42724.0,42722.0,0.23410364]
[1704104143530,0.0717618,42720.0,42717.0,0.001]
[1704104143770,0.23321711,42719.0,42717.0,0.001]
[1704104143966,0.5369478,42718.0,42717.0,0.001]
[1704104144172,0.84756491,42718.0,42717.0,0.001]
[1704104144511,0.87056491,42718.0,42717.0,0.001]
[1704104144723,1.17056491,42718.0,42717.0,0.001]
[1704104145149,1.17056491,42718.0,42713.0,0.2523]
[1704104145352,0.46823,42714.0,42713.0,0.2523]
[1704104145790,1.16808891,42714.0,42709.0,0.04684]
[1704104145917,0.468263,42712.0,42709.0,0.04684]
[1704104146146,0.468263,42712.0,42710.0,0.2523]
[1704104146376,0.04524,42711.0,42710.0,0.2523]
[1704104146611,0.74672011,42711.0,42710.0,0.2523]
[1704104146932,0.76972011,42711.0,42710.0,0.2523]
[1704104148507,0.77672011,42711.0,42710.0,0.2533]
[1704104149129,0.76972011,42711.0,42710.0,0.2523]
[1704104149331,0.77672011,42711.0,42710.0,0.2533]
[1704104149533,0.78372011,42711.0,42710.0,0.2543]
[1704104150774,0.73848011,42711.0,42710.0,0.2543]
[1704104150986,0.78354011,42711.0,42710.0,0.2543]
[1704104151194,0.73848011,42711.0,42710.0,0.2543]
[1704104151780,0.72448011,42711.0,42710.0,0.2523]
[1704104152046,0.73148011,42711.0,42710.0,0.2533]
[1704104152697,0.73848011,42711.0,42710.0,0.2543]
[1704104152948,0.72448011,42711.0,42710.0,0.2523]
[1704104153228,0.72948011,42711.0,42710.0,0.2523]
[1704104153445,0.78020011,42711.0,42710.0,0.2533]
[1704104154526,1.18436191,42711.0,42710.0,0.001]
[1704104155597,1.21222957,42711.0,42710.0,0.001]
[1704104156332,1.81792334,42711.0,42710.0,0.001]
[1704104156735,1.68049257,42711.0,42710.0,0.001]
[1704104159444,1.77425957,42711.0,42710.0,0.001]
[1704104160347,1.80888339,42711.0,42710.0,0.001]
[1704104162447,1.28299657,42711.0,42710.0,0.001]
[1704104162666,1.25305657,42711.0,42710.0,0.001]
[1704104164082,1.27605657,42711.0,42710.0,0.001]
[1704104165475,0.89989766,42711.0,42710.0,0.001]
[1704104168979,0.43163466,42711.0,42710.0,0.001]
[1704104169707,0.89989766,42711.0,42710.0,0.001]
[1704104171766,0.95473766,42711.0,42710.0,0.001]
[1704104172603,0.89989766,42711.0,42710.0,0.001]
[1704104173026,0.95449766,42711.0,42710.0,0.001]
[1704104173246,0.89989766,42711.0,42710.0,0.001]
[1704104173907,1.22487657,42711.0,42710.0,0.001]
[1704104174120,1.30335657,42711.0,42710.0,0.001]
[1704104175231,1.3399855,42711.0,42710.0,0.001]
[1704104177646,0.8717225,42711.0,42710.0,0.001]